[Event "Titled Tuesday Blitz October 25 Early 2022"]
[White "Zhigalko, Sergei"]
[Black "Rozman, Levy"]
[WhiteFideId "13502956"]
[BlackFideId "2039877"]
[WhiteElo "2662"]
[BlackElo "2376"]
[Result "0-1"]
[Round "09"]
[TimeControl "180+1"]
[Date "2022.10.25"]
[WhiteClock "0:00:05"]
[BlackClock "0:00:13"]

1. e4 {[%clk 0:03:00]}  e6 {[%clk 0:02:59]} 2. d4 {[%clk 0:03:00]}  d5 {[%clk 0:02:59]} 3. e5 {[%clk 0:03:01]}  c5 {[%clk 0:02:59]} 4. c3 {[%clk 0:03:02]}  Ne7 {[%clk 0:02:59]} 5. Nf3 {[%clk 0:03:02]}  b6 {[%clk 0:02:59]} 6. Bd3 {[%clk 0:03:02]}  Nec6 {[%clk 0:02:59]} 7. O-O {[%clk 0:02:59]}  Be7 {[%clk 0:02:59]} 8. Re1 {[%clk 0:02:56]}  Ba6 {[%clk 0:02:57]} 9. Bc2 {[%clk 0:02:52]}  Nd7 {[%clk 0:02:55]} 10. Be3 {[%clk 0:02:42]}  cxd4 {[%clk 0:02:44]} 11. Bxd4 {[%clk 0:02:40]}  g5 {[%clk 0:02:34]} 12. a3 {[%clk 0:01:55]}  g4 {[%clk 0:02:31]} 13. Nfd2 {[%clk 0:01:55]}  h5 {[%clk 0:02:30]} 14. b4 {[%clk 0:01:54]}  Nxd4 {[%clk 0:02:30]} 15. cxd4 {[%clk 0:01:53]}  Rc8 {[%clk 0:02:29]} 16. Nf1 {[%clk 0:01:24]}  Qc7 {[%clk 0:02:20]} 17. Bd3 {[%clk 0:01:18]}  Bxd3 {[%clk 0:02:16]} 18. Qxd3 {[%clk 0:01:19]}  Qc4 {[%clk 0:02:16]} 19. Qe3 {[%clk 0:01:14]}  Rg8 {[%clk 0:02:06]} 20. Nbd2 {[%clk 0:00:56]}  Qc3 {[%clk 0:02:04]} 21. Qxc3 {[%clk 0:00:24]}  Rxc3 {[%clk 0:02:05]} 22. Rec1 {[%clk 0:00:24]}  Rd3 {[%clk 0:01:49]} 23. Rc7 {[%clk 0:00:16]}  Rxd4 {[%clk 0:01:37]} 24. Rxa7 {[%clk 0:00:16]}  Nxe5 {[%clk 0:01:35]} 25. Ra8+ {[%clk 0:00:05]}  Bd8 {[%clk 0:01:34]} 26. Rc1 {[%clk 0:00:03]}  Kd7 {[%clk 0:00:50]} 27. Ra7+ {[%clk 0:00:02]}  Kd6 {[%clk 0:00:51]} 28. a4 {[%clk 0:00:01]}  Rxb4 {[%clk 0:00:47]} 29. Rc8 {[%clk 0:00:02]}  Rf8 {[%clk 0:00:39]} 30. g3 {[%clk 0:00:01]}  Be7 {[%clk 0:00:33]} 31. Rcc7 {[%clk 0:00:02]}  Re8 {[%clk 0:00:28]} 32. Kg2 {[%clk 0:00:01]}  Bg5 {[%clk 0:00:21]} 33. Rcb7 {[%clk 0:00:02]}  Re7 {[%clk 0:00:20]} 34. Rxe7 {[%clk 0:00:01]}  Bxe7 {[%clk 0:00:21]} 35. a5 {[%clk 0:00:01]}  bxa5 {[%clk 0:00:20]} 36. Rxa5 {[%clk 0:00:02]}  Rb2 {[%clk 0:00:20]} 37. Ra6+ {[%clk 0:00:02]}  Kd7 {[%clk 0:00:19]} 38. Ra7+ {[%clk 0:00:03]}  Kd6 {[%clk 0:00:17]} 39. Ra6+ {[%clk 0:00:03]}  Kc7 {[%clk 0:00:13]} 40. Ra7+ {[%clk 0:00:03]}  Rb7 {[%clk 0:00:13]} 41. Ra2 {[%clk 0:00:03]}  Bc5 {[%clk 0:00:13]} 42. h3 {[%clk 0:00:03]}  Kd6 {[%clk 0:00:13]} 43. hxg4 {[%clk 0:00:04]}  hxg4 {[%clk 0:00:14]} 44. Nh2 {[%clk 0:00:04]}  f5 {[%clk 0:00:14]} 45. Ra6+ {[%clk 0:00:04]}  Rb6 {[%clk 0:00:14]} 46. Ra2 {[%clk 0:00:04]}  Nc4 {[%clk 0:00:14]} 47. Nxc4+ {[%clk 0:00:03]}  dxc4 {[%clk 0:00:15]} 48. Nf1 {[%clk 0:00:02]}  c3 {[%clk 0:00:14]} 49. Rc2 {[%clk 0:00:02]}  Bd4 {[%clk 0:00:14]} 50. f3 {[%clk 0:00:02]}  Kd5 {[%clk 0:00:14]} 51. fxg4 {[%clk 0:00:02]}  fxg4 {[%clk 0:00:14]} 52. Nh2 {[%clk 0:00:02]}  Rb2 {[%clk 0:00:13]} 53. Rxb2 {[%clk 0:00:02]}  cxb2 {[%clk 0:00:13]} 54. Nxg4 {[%clk 0:00:03]}  b1=Q {[%clk 0:00:14]} 55. Nh2 {[%clk 0:00:03]}  Qg1+ {[%clk 0:00:13]} 56. Kh3 {[%clk 0:00:04]}  Be5 {[%clk 0:00:13]} 57. Nf3 {[%clk 0:00:05]}  Qxg3# {[%clk 0:00:13]} 0-1


[Site "https://www.chess.com"]

[Event "Titled Tuesday Blitz October 25 Early 2022"]
[White "Al Hosani, Omran"]
[Black "Wagner, Dennis"]
[WhiteFideId "9308733"]
[BlackFideId "24650684"]
[WhiteElo "2167"]
[BlackElo "2470"]
[Result "1-0"]
[Round "10"]
[TimeControl "180+1"]
[Date "2022.10.25"]
[WhiteClock "0:00:10"]
[BlackClock "0:00:08"]

1. d4 {[%clk 0:02:59]}  Nf6 {[%clk 0:02:59]} 2. c4 {[%clk 0:03:00]}  e6 {[%clk 0:03:00]} 3. Nc3 {[%clk 0:03:00]}  Bb4 {[%clk 0:02:59]} 4. a3 {[%clk 0:03:00]}  Bxc3+ {[%clk 0:02:59]} 5. bxc3 {[%clk 0:03:01]}  d6 {[%clk 0:02:54]} 6. f3 {[%clk 0:03:01]}  c5 {[%clk 0:02:54]} 7. e4 {[%clk 0:03:01]}  Nc6 {[%clk 0:02:54]} 8. Bd3 {[%clk 0:03:00]}  cxd4 {[%clk 0:02:51]} 9. cxd4 {[%clk 0:03:00]}  Nxd4 {[%clk 0:02:51]} 10. Bb2 {[%clk 0:03:00]}  Qa5+ {[%clk 0:02:47]} 11. Kf1 {[%clk 0:03:00]}  e5 {[%clk 0:02:42]} 12. Bxd4 {[%clk 0:02:42]}  exd4 {[%clk 0:02:43]} 13. Ne2 {[%clk 0:02:43]}  Qc5 {[%clk 0:02:43]} 14. Rb1 {[%clk 0:02:35]}  Qxa3 {[%clk 0:02:33]} 15. Nxd4 {[%clk 0:02:32]}  O-O {[%clk 0:02:32]} 16. h4 {[%clk 0:02:09]}  Nh5 {[%clk 0:02:29]} 17. Ne2 {[%clk 0:02:09]}  f5 {[%clk 0:01:46]} 18. exf5 {[%clk 0:01:57]}  Bxf5 {[%clk 0:01:47]} 19. Bxf5 {[%clk 0:01:57]}  Rxf5 {[%clk 0:01:47]} 20. Rb3 {[%clk 0:01:42]}  Qa6 {[%clk 0:01:44]} 21. g4 {[%clk 0:01:33]}  Qxc4 {[%clk 0:01:25]} 22. gxh5 {[%clk 0:01:12]}  Raf8 {[%clk 0:01:24]} 23. Rh3 {[%clk 0:01:09]}  Qg4 {[%clk 0:01:18]} 24. Ng1 {[%clk 0:00:56]}  Kh8 {[%clk 0:00:55]} 25. Qxd6 {[%clk 0:00:49]}  R5f6 {[%clk 0:00:43]} 26. Qd3 {[%clk 0:00:34]}  Qxh5 {[%clk 0:00:42]} 27. Kg2 {[%clk 0:00:31]}  Rg6+ {[%clk 0:00:36]} 28. Rg3 {[%clk 0:00:28]}  Rxg3+ {[%clk 0:00:28]} 29. Kxg3 {[%clk 0:00:29]}  Qf7 {[%clk 0:00:28]} 30. Nh3 {[%clk 0:00:28]}  a5 {[%clk 0:00:24]} 31. Qd6 {[%clk 0:00:12]}  a4 {[%clk 0:00:21]} 32. Re3 {[%clk 0:00:11]}  b5 {[%clk 0:00:17]} 33. Ng5 {[%clk 0:00:11]}  Qf5 {[%clk 0:00:15]} 34. Ne6 {[%clk 0:00:03]}  Qg6+ {[%clk 0:00:14]} 35. Kf2 {[%clk 0:00:02]}  Rg8 {[%clk 0:00:12]} 36. Qd7 {[%clk 0:00:02]}  h6 {[%clk 0:00:11]} 37. Nf4 {[%clk 0:00:01]}  Qc2+ {[%clk 0:00:11]} 38. Re2 {[%clk 0:00:02]}  Qc5+ {[%clk 0:00:11]} 39. Kg2 {[%clk 0:00:02]}  Qb6 {[%clk 0:00:09]} 40. Qd3 {[%clk 0:00:02]}  Rd8 {[%clk 0:00:04]} 41. Qf5 {[%clk 0:00:01]}  Qf6 {[%clk 0:00:02]} 42. Ng6+ {[%clk 0:00:01]}  Kg8 {[%clk 0:00:02]} 43. Qxf6 {[%clk 0:00:02]}  gxf6 {[%clk 0:00:03]} 44. Ne7+ {[%clk 0:00:02]}  Kf7 {[%clk 0:00:02]} 45. Nc6 {[%clk 0:00:02]}  Ra8 {[%clk 0:00:03]} 46. Re7+ {[%clk 0:00:01]}  Kg6 {[%clk 0:00:03]} 47. Nb4 {[%clk 0:00:02]}  a3 {[%clk 0:00:03]} 48. Re2 {[%clk 0:00:02]}  Ra4 {[%clk 0:00:02]} 49. Na2 {[%clk 0:00:01]}  b4 {[%clk 0:00:02]} 50. Re4 {[%clk 0:00:01]}  Kf5 {[%clk 0:00:02]} 51. Rxb4 {[%clk 0:00:01]}  Rxb4 {[%clk 0:00:02]} 52. Nxb4 {[%clk 0:00:02]}  Kf4 {[%clk 0:00:03]} 53. Kf2 {[%clk 0:00:02]}  h5 {[%clk 0:00:03]} 54. Kg2 {[%clk 0:00:03]}  Ke3 {[%clk 0:00:03]} 55. Nc2+ {[%clk 0:00:03]}  Kd2 {[%clk 0:00:03]} 56. Nxa3 {[%clk 0:00:04]}  Ke2 {[%clk 0:00:03]} 57. Nb5 {[%clk 0:00:05]}  f5 {[%clk 0:00:04]} 58. Nd6 {[%clk 0:00:05]}  f4 {[%clk 0:00:04]} 59. Ne4 {[%clk 0:00:05]}  Ke3 {[%clk 0:00:04]} 60. Nf6 {[%clk 0:00:06]}  Kd4 {[%clk 0:00:05]} 61. Nxh5 {[%clk 0:00:07]}  Ke5 {[%clk 0:00:06]} 62. Ng7 {[%clk 0:00:07]}  Kf6 {[%clk 0:00:06]} 63. Ne8+ {[%clk 0:00:08]}  Kf5 {[%clk 0:00:06]} 64. Nd6+ {[%clk 0:00:08]}  Ke5 {[%clk 0:00:07]} 65. Nc4+ {[%clk 0:00:08]}  Kd4 {[%clk 0:00:07]} 66. Nd2 {[%clk 0:00:08]}  Ke5 {[%clk 0:00:07]} 67. Ne4 {[%clk 0:00:09]}  Kf5 {[%clk 0:00:08]} 68. Kh3 {[%clk 0:00:10]}  Ke5 {[%clk 0:00:08]} 69. Kg4 {[%clk 0:00:10]} 1-0


[Site "https://www.chess.com"]

[Event "Titled Tuesday Blitz October 25 Early 2022"]
[White "Chernobay, Artem"]
[Black "Zou, Chen"]
[WhiteFideId "4167406"]
[BlackFideId "8610959"]
[WhiteElo "2473"]
[BlackElo "2325"]
[Result "1-0"]
[Round "10"]
[TimeControl "180+1"]
[Date "2022.10.25"]
[WhiteClock "0:00:14"]
[BlackClock "0:00:02"]

1. e4 {[%clk 0:02:59]}  c5 {[%clk 0:02:58]} 2. Nf3 {[%clk 0:02:57]}  d6 {[%clk 0:02:58]} 3. d4 {[%clk 0:02:56]}  cxd4 {[%clk 0:02:59]} 4. Qxd4 {[%clk 0:02:54]}  Nc6 {[%clk 0:02:57]} 5. Bb5 {[%clk 0:02:53]}  Bd7 {[%clk 0:02:58]} 6. Bxc6 {[%clk 0:02:53]}  Bxc6 {[%clk 0:02:59]} 7. Nc3 {[%clk 0:02:54]}  Nf6 {[%clk 0:03:00]} 8. Bg5 {[%clk 0:02:54]}  e6 {[%clk 0:03:00]} 9. O-O-O {[%clk 0:02:55]}  Be7 {[%clk 0:03:01]} 10. Rhe1 {[%clk 0:02:55]}  O-O {[%clk 0:03:01]} 11. Qd3 {[%clk 0:02:55]}  Qa5 {[%clk 0:03:02]} 12. Kb1 {[%clk 0:02:49]}  Rfd8 {[%clk 0:02:58]} 13. h4 {[%clk 0:02:42]}  Be8 {[%clk 0:02:53]} 14. Nd4 {[%clk 0:02:40]}  Rac8 {[%clk 0:02:51]} 15. f3 {[%clk 0:02:24]}  b5 {[%clk 0:02:29]} 16. g4 {[%clk 0:02:21]}  b4 {[%clk 0:02:28]} 17. Nce2 {[%clk 0:02:21]}  Ba4 {[%clk 0:02:11]} 18. Ng3 {[%clk 0:02:01]}  Qc7 {[%clk 0:02:03]} 19. Nh5 {[%clk 0:01:48]}  Ne8 {[%clk 0:02:01]} 20. Bxe7 {[%clk 0:01:41]}  Qxe7 {[%clk 0:02:02]} 21. g5 {[%clk 0:01:41]}  g6 {[%clk 0:01:55]} 22. Ng3 {[%clk 0:01:35]}  e5 {[%clk 0:01:55]} 23. Nb3 {[%clk 0:01:34]}  Ng7 {[%clk 0:01:37]} 24. Qa6 {[%clk 0:01:26]}  Be8 {[%clk 0:01:32]} 25. Rd2 {[%clk 0:01:21]}  Ne6 {[%clk 0:01:28]} 26. Red1 {[%clk 0:01:20]}  Rc6 {[%clk 0:01:28]} 27. Qa5 {[%clk 0:01:19]}  Rb8 {[%clk 0:01:24]} 28. Nf1 {[%clk 0:01:15]}  Rcb6 {[%clk 0:01:09]} 29. Ne3 {[%clk 0:01:07]}  Rb5 {[%clk 0:01:09]} 30. Qa6 {[%clk 0:01:07]}  R8b6 {[%clk 0:01:09]} 31. Qc8 {[%clk 0:01:07]}  Rc6 {[%clk 0:01:00]} 32. Qa8 {[%clk 0:00:56]}  Nc7 {[%clk 0:00:54]} 33. Qc8 {[%clk 0:00:45]}  Ne6 {[%clk 0:00:26]} 34. Qa8 {[%clk 0:00:44]}  Nc7 {[%clk 0:00:04]} 35. Qc8 {[%clk 0:00:42]}  Kg7 {[%clk 0:00:05]} 36. Qg4 {[%clk 0:00:36]}  a5 {[%clk 0:00:05]} 37. h5 {[%clk 0:00:34]}  a4 {[%clk 0:00:06]} 38. Nc1 {[%clk 0:00:30]}  a3 {[%clk 0:00:05]} 39. b3 {[%clk 0:00:28]}  Bd7 {[%clk 0:00:05]} 40. Qh4 {[%clk 0:00:25]}  Ne6 {[%clk 0:00:05]} 41. hxg6 {[%clk 0:00:24]}  fxg6 {[%clk 0:00:04]} 42. Rh1 {[%clk 0:00:17]}  Kg8 {[%clk 0:00:02]} 43. Nd5 {[%clk 0:00:14]}  Qf7 {[%clk 0:00:01]} 44. Nf6+ {[%clk 0:00:14]}  Kf8 {[%clk 0:00:02]} 45. Qxh7 {[%clk 0:00:14]} 1-0


[Site "https://www.chess.com"]

[Event "Titled Tuesday Blitz October 25 Early 2022"]
[White "Dardha, Daniel"]
[Black "Paravyan, David"]
[WhiteFideId "240990"]
[BlackFideId "4194985"]
[WhiteElo "2528"]
[BlackElo "2555"]
[Result "1/2-1/2"]
[Round "10"]
[TimeControl "180+1"]
[Date "2022.10.25"]
[WhiteClock "0:00:03"]
[BlackClock "0:00:04"]

1. e4 {[%clk 0:02:20]}  e5 {[%clk 0:02:58]} 2. Nf3 {[%clk 0:02:19]}  Nf6 {[%clk 0:02:58]} 3. d4 {[%clk 0:02:16]}  Nxe4 {[%clk 0:02:56]} 4. Bd3 {[%clk 0:02:16]}  d5 {[%clk 0:02:54]} 5. Nxe5 {[%clk 0:02:16]}  Nd7 {[%clk 0:02:55]} 6. Nxd7 {[%clk 0:02:13]}  Bxd7 {[%clk 0:02:56]} 7. Nc3 {[%clk 0:02:11]}  Nxc3 {[%clk 0:02:55]} 8. bxc3 {[%clk 0:02:12]}  Bd6 {[%clk 0:02:55]} 9. O-O {[%clk 0:02:12]}  h5 {[%clk 0:02:56]} 10. Re1+ {[%clk 0:02:10]}  Kf8 {[%clk 0:02:56]} 11. Qf3 {[%clk 0:02:08]}  Bg4 {[%clk 0:02:45]} 12. Qe3 {[%clk 0:02:04]}  Qf6 {[%clk 0:02:29]} 13. h3 {[%clk 0:01:52]}  Bd7 {[%clk 0:02:29]} 14. Qg5 {[%clk 0:01:36]}  Qxg5 {[%clk 0:02:29]} 15. Bxg5 {[%clk 0:01:37]}  f6 {[%clk 0:02:26]} 16. Be3 {[%clk 0:01:35]}  Kf7 {[%clk 0:02:02]} 17. c4 {[%clk 0:01:27]}  dxc4 {[%clk 0:02:03]} 18. Bxc4+ {[%clk 0:01:28]}  Be6 {[%clk 0:02:03]} 19. Bd3 {[%clk 0:01:19]}  Rad8 {[%clk 0:02:00]} 20. c4 {[%clk 0:01:18]}  b6 {[%clk 0:01:57]} 21. a4 {[%clk 0:01:13]}  Rhe8 {[%clk 0:01:50]} 22. a5 {[%clk 0:01:08]}  Bb4 {[%clk 0:01:48]} 23. axb6 {[%clk 0:01:06]}  axb6 {[%clk 0:01:45]} 24. Reb1 {[%clk 0:01:00]}  Bc3 {[%clk 0:01:41]} 25. Ra7 {[%clk 0:01:00]}  Bxd4 {[%clk 0:01:41]} 26. Rxc7+ {[%clk 0:00:59]}  Re7 {[%clk 0:01:30]} 27. Rxe7+ {[%clk 0:00:52]}  Kxe7 {[%clk 0:01:30]} 28. Bxd4 {[%clk 0:00:40]}  Rxd4 {[%clk 0:01:31]} 29. Be2 {[%clk 0:00:41]}  Rd6 {[%clk 0:01:26]} 30. Rb5 {[%clk 0:00:37]}  Rc6 {[%clk 0:00:49]} 31. f3 {[%clk 0:00:25]}  h4 {[%clk 0:00:47]} 32. Kf2 {[%clk 0:00:22]}  Kd6 {[%clk 0:00:47]} 33. Ke3 {[%clk 0:00:20]}  Kc7 {[%clk 0:00:46]} 34. Kd4 {[%clk 0:00:19]}  Rd6+ {[%clk 0:00:35]} 35. Kc3 {[%clk 0:00:20]}  Bd7 {[%clk 0:00:35]} 36. Rh5 {[%clk 0:00:19]}  g5 {[%clk 0:00:34]} 37. f4 {[%clk 0:00:19]}  gxf4 {[%clk 0:00:16]} 38. Rxh4 {[%clk 0:00:20]}  Bc6 {[%clk 0:00:17]} 39. Rxf4 {[%clk 0:00:19]}  Bxg2 {[%clk 0:00:17]} 40. h4 {[%clk 0:00:20]}  Re6 {[%clk 0:00:18]} 41. Bd3 {[%clk 0:00:19]}  Re3 {[%clk 0:00:18]} 42. Kd4 {[%clk 0:00:16]}  Rh3 {[%clk 0:00:19]} 43. Be2 {[%clk 0:00:15]}  f5 {[%clk 0:00:14]} 44. h5 {[%clk 0:00:12]}  Kd6 {[%clk 0:00:07]} 45. Rxf5 {[%clk 0:00:10]}  Rh4+ {[%clk 0:00:08]} 46. Kc3 {[%clk 0:00:09]}  Be4 {[%clk 0:00:08]} 47. Rg5 {[%clk 0:00:07]}  Rh2 {[%clk 0:00:06]} 48. Bg4 {[%clk 0:00:05]}  Rg2 {[%clk 0:00:06]} 49. h6 {[%clk 0:00:04]}  Bb1 {[%clk 0:00:04]} 50. Rg7 {[%clk 0:00:03]}  Ke5 {[%clk 0:00:05]} 51. Bf3 {[%clk 0:00:02]}  Rh2 {[%clk 0:00:04]} 52. Rg5+ {[%clk 0:00:01]}  Kf6 {[%clk 0:00:04]} 53. Rh5 {[%clk 0:00:02]}  Rxh5 {[%clk 0:00:03]} 54. Bxh5 {[%clk 0:00:03]}  Kg5 {[%clk 0:00:03]} 55. Be2 {[%clk 0:00:02]}  Kxh6 {[%clk 0:00:04]} 56. Bd3 {[%clk 0:00:02]}  Ba2 {[%clk 0:00:04]} 57. Kb4 {[%clk 0:00:02]}  Kg5 {[%clk 0:00:04]} 58. Kb5 {[%clk 0:00:02]}  Kf4 {[%clk 0:00:04]} 59. c5 {[%clk 0:00:03]}  bxc5 {[%clk 0:00:04]} 60. Kxc5 {[%clk 0:00:03]} 1/2-1/2


[Site "https://www.chess.com"]

[Event "Titled Tuesday Blitz October 25 Early 2022"]
[White "Fernandez Guillen, Ernesto J."]
[Black "Postny, Evgeny"]
[WhiteFideId "3512428"]
[BlackFideId "2804344"]
[WhiteElo "2422"]
[BlackElo "2473"]
[Result "0-1"]
[Round "10"]
[TimeControl "180+1"]
[Date "2022.10.25"]
[WhiteClock "0:00:40"]
[BlackClock "0:00:31"]

1. e4 {[%clk 0:02:59]}  e5 {[%clk 0:02:59]} 2. Nf3 {[%clk 0:02:59]}  Nc6 {[%clk 0:03:00]} 3. d4 {[%clk 0:03:00]}  exd4 {[%clk 0:03:00]} 4. Bc4 {[%clk 0:03:01]}  Nf6 {[%clk 0:02:59]} 5. O-O {[%clk 0:03:01]}  Nxe4 {[%clk 0:02:58]} 6. Re1 {[%clk 0:03:02]}  d5 {[%clk 0:02:59]} 7. Bxd5 {[%clk 0:03:03]}  Qxd5 {[%clk 0:02:59]} 8. Nc3 {[%clk 0:03:04]}  Qa5 {[%clk 0:02:59]} 9. Nxe4 {[%clk 0:03:05]}  Be6 {[%clk 0:02:59]} 10. Bd2 {[%clk 0:03:06]}  Qf5 {[%clk 0:02:46]} 11. Bg5 {[%clk 0:03:06]}  h6 {[%clk 0:02:42]} 12. Bh4 {[%clk 0:03:06]}  Qh5 {[%clk 0:02:12]} 13. Bf6 {[%clk 0:02:37]}  Qg6 {[%clk 0:02:01]} 14. Nh4 {[%clk 0:02:28]}  Qh7 {[%clk 0:01:57]} 15. Qh5 {[%clk 0:02:04]}  Be7 {[%clk 0:01:19]} 16. Bxe7 {[%clk 0:01:55]}  Kxe7 {[%clk 0:01:20]} 17. Nc5 {[%clk 0:01:47]}  Rae8 {[%clk 0:01:01]} 18. Rxe6+ {[%clk 0:00:59]}  fxe6 {[%clk 0:01:02]} 19. Ng6+ {[%clk 0:00:59]}  Kd8 {[%clk 0:00:56]} 20. Nxh8 {[%clk 0:00:53]}  Qxh8 {[%clk 0:00:50]} 21. Nxb7+ {[%clk 0:00:53]}  Kc8 {[%clk 0:00:50]} 22. Qb5 {[%clk 0:00:52]}  Nd8 {[%clk 0:00:49]} 23. Nc5 {[%clk 0:00:52]}  Re7 {[%clk 0:00:43]} 24. Rd1 {[%clk 0:00:43]}  g5 {[%clk 0:00:36]} 25. Qa6+ {[%clk 0:00:39]}  Kb8 {[%clk 0:00:36]} 26. Rd3 {[%clk 0:00:40]}  c6 {[%clk 0:00:31]} 0-1


[Site "https://www.chess.com"]

[Event "Titled Tuesday Blitz October 25 Early 2022"]
[White "Halkias, Stelios"]
[Black "Averjanov, Alexey"]
[WhiteFideId "4201809"]
[BlackFideId "14109867"]
[WhiteElo "2453"]
[BlackElo "2693"]
[Result "1/2-1/2"]
[Round "10"]
[TimeControl "180+1"]
[Date "2022.10.25"]
[WhiteClock "0:00:16"]
[BlackClock "0:01:35"]

1. Nf3 {[%clk 0:03:00]}  d5 {[%clk 0:02:58]} 2. d4 {[%clk 0:03:00]}  Nf6 {[%clk 0:02:58]} 3. c4 {[%clk 0:02:59]}  dxc4 {[%clk 0:02:58]} 4. e3 {[%clk 0:02:59]}  e6 {[%clk 0:02:59]} 5. Bxc4 {[%clk 0:02:59]}  a6 {[%clk 0:02:59]} 6. O-O {[%clk 0:02:58]}  b5 {[%clk 0:02:59]} 7. Be2 {[%clk 0:02:56]}  Bb7 {[%clk 0:02:59]} 8. a4 {[%clk 0:02:57]}  b4 {[%clk 0:02:59]} 9. Nbd2 {[%clk 0:02:57]}  Nbd7 {[%clk 0:02:59]} 10. Nc4 {[%clk 0:02:57]}  c5 {[%clk 0:02:58]} 11. a5 {[%clk 0:02:57]}  Qc7 {[%clk 0:02:57]} 12. Bd2 {[%clk 0:02:53]}  Be7 {[%clk 0:02:55]} 13. Rc1 {[%clk 0:02:52]}  O-O {[%clk 0:02:55]} 14. Qb3 {[%clk 0:02:41]}  Rab8 {[%clk 0:02:50]} 15. Rfd1 {[%clk 0:02:40]}  Rfc8 {[%clk 0:02:50]} 16. Nfe5 {[%clk 0:02:27]}  h6 {[%clk 0:02:44]} 17. h3 {[%clk 0:02:17]}  Bd5 {[%clk 0:02:34]} 18. Qa4 {[%clk 0:02:09]}  Qb7 {[%clk 0:02:30]} 19. Bf1 {[%clk 0:02:04]}  Rc7 {[%clk 0:02:27]} 20. Nxd7 {[%clk 0:01:50]}  Nxd7 {[%clk 0:02:28]} 21. e4 {[%clk 0:01:47]}  Bxe4 {[%clk 0:02:23]} 22. Bf4 {[%clk 0:01:47]}  Rbc8 {[%clk 0:02:15]} 23. Bxc7 {[%clk 0:01:46]}  Qxc7 {[%clk 0:02:16]} 24. dxc5 {[%clk 0:01:42]}  Nxc5 {[%clk 0:02:13]} 25. Qa2 {[%clk 0:01:39]}  b3 {[%clk 0:02:09]} 26. Qa1 {[%clk 0:01:39]}  Bc2 {[%clk 0:02:09]} 27. Rd2 {[%clk 0:01:25]}  Bg5 {[%clk 0:02:04]} 28. Rdxc2 {[%clk 0:01:20]}  bxc2 {[%clk 0:02:05]} 29. Rxc2 {[%clk 0:01:20]}  Qf4 {[%clk 0:01:59]} 30. Nb6 {[%clk 0:01:11]}  Rc7 {[%clk 0:01:54]} 31. Qd1 {[%clk 0:01:08]}  Ne4 {[%clk 0:01:50]} 32. g3 {[%clk 0:00:56]}  Nxg3 {[%clk 0:01:45]} 33. Rxc7 {[%clk 0:00:45]}  Qxc7 {[%clk 0:01:46]} 34. fxg3 {[%clk 0:00:29]}  Qxg3+ {[%clk 0:01:47]} 35. Kh1 {[%clk 0:00:29]}  Be3 {[%clk 0:01:47]} 36. Qd8+ {[%clk 0:00:23]}  Kh7 {[%clk 0:01:47]} 37. Qd3+ {[%clk 0:00:23]}  f5 {[%clk 0:01:45]} 38. Bg2 {[%clk 0:00:23]}  Qf2 {[%clk 0:01:43]} 39. Qf1 {[%clk 0:00:22]}  Qg3 {[%clk 0:01:40]} 40. Qf3 {[%clk 0:00:16]}  Qe1+ {[%clk 0:01:37]} 41. Qf1 {[%clk 0:00:16]}  Qg3 {[%clk 0:01:35]} 42. Qf3 {[%clk 0:00:16]} 1/2-1/2


[Site "https://www.chess.com"]

[Event "Titled Tuesday Blitz October 25 Early 2022"]
[White "Indjic, Aleksandar"]
[Black "Gabrielian, Artur"]
[WhiteFideId "911925"]
[BlackFideId "4131002"]
[WhiteElo "2592"]
[BlackElo "2432"]
[Result "0-1"]
[Round "10"]
[TimeControl "180+1"]
[Date "2022.10.25"]
[WhiteClock "0:01:29"]
[BlackClock "0:00:12"]

1. d4 {[%clk 0:03:00]}  Nf6 {[%clk 0:02:59]} 2. c4 {[%clk 0:02:59]}  g6 {[%clk 0:02:58]} 3. Nc3 {[%clk 0:03:00]}  d5 {[%clk 0:02:58]} 4. Nf3 {[%clk 0:02:58]}  Bg7 {[%clk 0:02:58]} 5. h4 {[%clk 0:02:59]}  c6 {[%clk 0:02:57]} 6. cxd5 {[%clk 0:02:57]}  cxd5 {[%clk 0:02:57]} 7. Bf4 {[%clk 0:02:57]}  O-O {[%clk 0:02:56]} 8. e3 {[%clk 0:02:56]}  Nc6 {[%clk 0:02:56]} 9. Qb3 {[%clk 0:02:57]}  Na5 {[%clk 0:02:53]} 10. Qa3 {[%clk 0:02:57]}  Nc6 {[%clk 0:02:53]} 11. Bd3 {[%clk 0:02:55]}  a5 {[%clk 0:02:42]} 12. Nb5 {[%clk 0:02:44]}  Nb4 {[%clk 0:02:27]} 13. O-O {[%clk 0:02:40]}  Nxd3 {[%clk 0:02:14]} 14. Qxd3 {[%clk 0:02:41]}  Bf5 {[%clk 0:02:14]} 15. Qa3 {[%clk 0:02:38]}  Qb6 {[%clk 0:02:00]} 16. Nc7 {[%clk 0:02:31]}  Rac8 {[%clk 0:02:00]} 17. Qxe7 {[%clk 0:02:29]}  Rfd8 {[%clk 0:01:15]} 18. Rac1 {[%clk 0:02:01]}  Bf8 {[%clk 0:00:38]} 19. Qe5 {[%clk 0:01:46]}  Ng4 {[%clk 0:00:38]} 20. Nxd5 {[%clk 0:01:45]}  Qxb2 {[%clk 0:00:22]} 21. Rxc8 {[%clk 0:01:40]}  Rxc8 {[%clk 0:00:20]} 22. Ne7+ {[%clk 0:01:37]}  Bxe7 {[%clk 0:00:20]} 23. Qxe7 {[%clk 0:01:38]}  Bd3 {[%clk 0:00:12]} 24. Ne5 {[%clk 0:01:29]}  Qxf2+ {[%clk 0:00:12]} 0-1


[Site "https://www.chess.com"]

[Event "Titled Tuesday Blitz October 25 Early 2022"]
[White "Jobava, Baadur"]
[Black "Caruana, Fabiano"]
[WhiteFideId "13601520"]
[BlackFideId "2020009"]
[WhiteElo "2582"]
[BlackElo "2847"]
[Result "1-0"]
[Round "10"]
[TimeControl "180+1"]
[Date "2022.10.25"]
[WhiteClock "0:00:19"]
[BlackClock "0:00:03"]

1. b3 {[%clk 0:03:00]}  e5 {[%clk 0:02:58]} 2. Bb2 {[%clk 0:02:58]}  Nc6 {[%clk 0:02:59]} 3. Nf3 {[%clk 0:02:59]}  d6 {[%clk 0:02:59]} 4. d4 {[%clk 0:02:59]}  e4 {[%clk 0:02:59]} 5. d5 {[%clk 0:02:59]}  Nce7 {[%clk 0:02:48]} 6. Ng5 {[%clk 0:02:59]}  f5 {[%clk 0:02:48]} 7. e3 {[%clk 0:02:50]}  c6 {[%clk 0:02:19]} 8. Nc3 {[%clk 0:02:42]}  Ng6 {[%clk 0:02:16]} 9. h4 {[%clk 0:02:27]}  Nf6 {[%clk 0:02:15]} 10. Be2 {[%clk 0:01:29]}  Be7 {[%clk 0:02:08]} 11. Qd4 {[%clk 0:01:17]}  h6 {[%clk 0:02:03]} 12. Nh3 {[%clk 0:01:14]}  O-O {[%clk 0:02:01]} 13. O-O-O {[%clk 0:01:12]}  c5 {[%clk 0:01:58]} 14. Qd2 {[%clk 0:01:12]}  a6 {[%clk 0:01:41]} 15. h5 {[%clk 0:01:10]}  Ne5 {[%clk 0:01:41]} 16. Nf4 {[%clk 0:01:10]}  Rf7 {[%clk 0:01:17]} 17. Ne6 {[%clk 0:01:05]}  Qa5 {[%clk 0:01:10]} 18. Kb1 {[%clk 0:00:57]}  b6 {[%clk 0:00:47]} 19. f4 {[%clk 0:00:52]}  Neg4 {[%clk 0:00:42]} 20. Bxg4 {[%clk 0:00:36]}  Nxg4 {[%clk 0:00:43]} 21. Qe2 {[%clk 0:00:33]}  Nf6 {[%clk 0:00:35]} 22. g4 {[%clk 0:00:33]}  fxg4 {[%clk 0:00:34]} 23. f5 {[%clk 0:00:33]}  b5 {[%clk 0:00:24]} 24. Rhg1 {[%clk 0:00:32]}  Bb7 {[%clk 0:00:23]} 25. Rxg4 {[%clk 0:00:27]}  Nxg4 {[%clk 0:00:18]} 26. Qxg4 {[%clk 0:00:28]}  Bf6 {[%clk 0:00:18]} 27. Nxe4 {[%clk 0:00:28]}  Bxb2 {[%clk 0:00:18]} 28. Kxb2 {[%clk 0:00:29]}  c4 {[%clk 0:00:12]} 29. Nf6+ {[%clk 0:00:26]}  Kh8 {[%clk 0:00:08]} 30. Qg6 {[%clk 0:00:26]}  gxf6 {[%clk 0:00:03]} 31. Qxf7 {[%clk 0:00:26]}  Rg8 {[%clk 0:00:03]} 32. Qxf6+ {[%clk 0:00:27]}  Kh7 {[%clk 0:00:03]} 33. Qf7+ {[%clk 0:00:26]}  Kh8 {[%clk 0:00:04]} 34. Qf6+ {[%clk 0:00:19]}  Kh7 {[%clk 0:00:04]} 35. Nf4 {[%clk 0:00:19]}  c3+ {[%clk 0:00:02]} 36. Qxc3 {[%clk 0:00:19]}  Qxc3+ {[%clk 0:00:02]} 37. Kxc3 {[%clk 0:00:20]}  Rg5 {[%clk 0:00:02]} 38. e4 {[%clk 0:00:20]}  Rxh5 {[%clk 0:00:03]} 39. Nxh5 {[%clk 0:00:19]} 1-0


[Site "https://www.chess.com"]